fUST/lending_fUST_20250113
["ID","MTS","AMOUNT","RATE_DAILY","PERIOD"]
[348740032,1736764238960,-968.39,0.00021029,2]
[348740034,1736764238970,-501.31552342,0.00021029,3]
[348740036,1736764238979,-500.0,0.00021029,3]
[348740038,1736764238989,-500.0,0.00021029,3]
[348740040,1736764238998,-500.0,0.00021029,3]
[348740042,1736764239010,-568.01,0.00021029,3]
[348740044,1736764239019,-504.47663405,0.00021029,3]
[348740046,1736764239028,-500.0,0.00021029,3]
[348740048,1736764239037,-500.0,0.00021029,3]
[348740050,1736764239047,-504.7779249,0.00021029,3]
[348740052,1736764239058,-500.0,0.00021029,3]
[348740055,1736764239069,-502.59880532,0.00021029,3]
[348740057,1736764239078,-500.0,0.00021029,3]
[348740059,1736764239087,-500.0,0.00021029,3]
[348740061,1736764239096,-500.0,0.00021029,3]
[348740062,1736764239108,-500.0,0.00021029,3]
[348740065,1736764239118,-1000.0,0.00021029,3]
[348740066,1736764239129,-500.0,0.00021029,3]
[348740067,1736764239139,-501.11104097,0.00021029,3]
[348740068,1736764239148,-500.0,0.00021029,3]
[348740069,1736764239158,-500.0,0.00021029,3]
[348740070,1736764239168,-502.06048974,0.00021029,3]
[348740071,1736764239177,-500.0,0.00021029,3]
[348740072,1736764239187,-54.69206268,0.00021029,3]
[348740073,1736764239262,-445.30793732,0.00021029,3]
[348740074,1736764239272,-500.0,0.00021029,3]
[348740075,1736764239280,-500.0,0.00021029,3]
[348740082,1736764239412,-500.0,0.00021029,3]
[348740084,1736764239425,-506.40067624,0.00021029,3]
[348740087,1736764239435,-550.66721148,0.00021029,3]
[348740089,1736764239444,-500.0,0.00021029,3]
[348740090,1736764239454,-500.0,0.00021029,3]
[348740093,1736764239464,-274.15810389,0.00021029,3]
[348740095,1736764239473,-442.85011736,0.00021029,3]
[348740097,1736764239483,-500.0,0.00021029,3]
[348740099,1736764239492,-500.0,0.00021029,3]
[348740101,1736764239502,-500.0,0.00021029,3]
[348740103,1736764239512,-500.0,0.00021029,3]
[348740105,1736764239521,-500.0,0.00021029,3]
[348740107,1736764239530,-500.0,0.00021029,3]
[348740109,1736764239540,-500.0,0.00021029,3]
[348740111,1736764239550,-500.0,0.00021029,3]
[348740113,1736764239559,-500.0,0.00021029,3]
[348740116,1736764239569,-500.0,0.00021029,3]
[348740118,1736764239578,-500.0,0.00021029,3]
[348740120,1736764239588,-1000.0,0.00021029,7]
[348740122,1736764239597,-500.0,0.00021029,3]
[348740124,1736764239608,-500.0,0.00021029,3]
[348740126,1736764239618,-505.31433812,0.00021029,3]
[348740128,1736764239627,-500.0,0.00021029,3]
[348740130,1736764239636,-500.0,0.00021029,3]
[348740132,1736764239646,-500.0,0.00021029,3]
[348740134,1736764239657,-447.61596122,0.00021029,3]
[348740136,1736764239667,-500.0,0.00021029,3]
[348740138,1736764239677,-500.0,0.00021029,3]
[348740140,1736764239686,-500.0,0.00021029,3]
[348740142,1736764239696,-320.09970471,0.00021029,3]
[348740144,1736764239705,-204.6799111,0.00021029,3]
[348740146,1736764239715,-500.0,0.00021029,3]
[348740148,1736764239724,-500.0,0.00021029,3]
[348740150,1736764239734,-500.0,0.00021029,3]
[348740152,1736764239743,-500.0,0.00021029,3]
[348740154,1736764239753,-504.55567194,0.00021029,3]
[348740156,1736764239762,-502.05430977,0.00021029,3]
[348740158,1736764239772,-500.0,0.00021029,3]
[348740160,1736764239782,-500.0,0.00021029,3]
[348740163,1736764239792,-500.0,0.00021029,3]
[348740166,1736764239802,-3000.0,0.0002103,2]
[348740167,1736764239812,-659.08832501,0.0002104,2]
[348740227,1736764240379,-2340.91167499,0.0002104,2]
[348740230,1736764240390,-3000.0,0.0002105,2]
[348740232,1736764240400,-3000.0,0.0002106,2]
[348740234,1736764240410,-882.97832501,0.0002107,2]
[348740241,1736764240467,-2117.02167499,0.0002107,2]
[348740243,1736764240477,-3000.0,0.0002108,2]
[348740245,1736764240487,-3000.0,0.0002109,2]
[348740247,1736764240497,-642.32598618,0.00021095,3]
[348740249,1736764240507,-576.83,0.00021095,3]
[348740251,1736764240516,-500.0,0.00021095,3]
[348740253,1736764240526,-2507.92,0.00021095,2]
[348740255,1736764240535,-500.0,0.00021095,3]
[348740257,1736764240544,-3000.0,0.000211,2]
[348740259,1736764240554,-500.0,0.00021179,3]
[348740261,1736764240564,-420.0,0.00021192,2]
[348740263,1736764240574,-968.39,0.00021303,2]
[348740265,1736764240583,-203.94942557,0.00021303,3]
[348740267,1736764240592,-568.01,0.00021303,3]
[348740269,1736764240604,-279.62420715,0.00021303,3]
[348740271,1736764240613,-220.6,0.00021303,3]
[348740273,1736764240623,-500.0,0.00021303,3]
[348740276,1736764240633,-500.0,0.00021303,3]
[348740278,1736764240644,-500.0,0.00021303,7]
[348740280,1736764240655,-237.81,0.00021303,3]
[348740282,1736764240664,-576.83,0.00021369,3]
[348740284,1736764240675,-500.0,0.00021369,3]
[348740286,1736764240684,-2507.92,0.00021369,2]
[348740288,1736764240693,-500.0,0.00021369,3]
[348740290,1736764240702,-500.0,0.00021453,3]
[348740292,1736764240712,-300.0,0.000215,9]
[348740294,1736764240721,-968.39,0.00021577,2]
[348740296,1736764240731,-568.01,0.00021577,3]
[348740298,1736764240740,-500.0,0.00021577,3]
[348740300,1736764240749,-237.74,0.00021577,3]
[348740302,1736764240759,-4107.0,0.000216,4]
[348740304,1736764240768,-576.83,0.00021643,3]
[348740306,1736764240777,-514.61359206,0.00021643,3]
[348740308,1736764240787,-2507.92,0.00021643,2]
[348740310,1736764240797,-500.0,0.00021643,3]
[348740312,1736764240806,-500.0,0.00021727,3]
[348740314,1736764240816,-968.39,0.00021851,2]
[348740316,1736764240825,-568.01,0.00021851,3]
[348740319,1736764240834,-500.0,0.00021851,3]
[348740321,1736764240843,-576.83,0.00021917,3]
[348740323,1736764240855,-2507.92,0.00021917,2]
[348740326,1736764240875,-301.12293374,0.00021917,3]
[348740328,1736764240885,-167.0,0.00022,2]
[348740330,1736764240895,-420.93999999,0.00022001,3]
[348740332,1736764240904,-968.39,0.00022125,2]
[348740334,1736764240914,-568.01,0.00022125,3]
[348740336,1736764240924,-500.0,0.00022125,3]
[348740338,1736764240934,-576.83,0.00022191,3]
[348740340,1736764240943,-2507.92,0.00022191,2]
[348740342,1736764240953,-167.0,0.00022192,2]
[348740344,1736764240963,-968.39,0.00022399,2]
[348740346,1736764240972,-568.01,0.00022399,3]
[348740349,1736764240982,-500.0,0.00022399,3]
[348740351,1736764240991,-576.83,0.00022465,3]
[348740353,1736764241001,-2507.92,0.00022465,2]
[348740355,1736764241011,-968.39,0.00022673,2]
[348740357,1736764241021,-568.01,0.00022673,3]
[348740359,1736764241031,-500.0,0.00022673,3]
[348740361,1736764241040,-576.83,0.00022739,3]
[348740363,1736764241050,-2507.92,0.00022739,2]
[348740365,1736764241061,-6194.84938202,0.0002287,2]
[348740367,1736764241072,-968.39,0.00022947,2]
[348740370,1736764241082,-568.01,0.00022947,3]
[348740372,1736764241091,-587.25186677,0.00022947,3]
[348740374,1736764241103,-300.0,0.00023,10]
[348740376,1736764241112,-576.83,0.00023013,3]
[348740378,1736764241122,-2507.92,0.00023013,2]
[348740380,1736764241131,-167.0,0.00023014,2]
[348740382,1736764241141,-415.0,0.00023088,2]
[348740384,1736764241150,-516.764,0.0002316,2]
[348740386,1736764241160,-968.39,0.00023221,2]
[348740388,1736764241170,-568.01,0.00023221,3]
[348740390,1736764241180,-576.83,0.00023287,3]
[348740392,1736764241190,-2507.92,0.00023287,2]
[348740394,1736764241199,-4107.0,0.00023328,7]
[348740396,1736764241209,-9566.58826357,0.00023474,2]
[348740399,1736764241225,-968.39,0.00023495,2]
[348740402,1736764241238,-568.01,0.00023495,3]
[348740404,1736764241251,-1888.19428176,0.00023503,2]
[348740406,1736764241263,-6477.09338431,0.00023504,2]
[348740409,1736764241276,-514.8218802,0.00023509,2]
[348740411,1736764241288,-576.83,0.00023561,3]
[348740414,1736764241301,-2507.92,0.00023561,2]
[348740416,1736764241315,-158.58,0.000236,31]
[348740418,1736764241326,-158.58,0.000236,31]
[348740420,1736764241336,-158.58,0.000236,31]
[348740422,1736764241348,-158.58,0.000236,31]
[348740424,1736764241365,-158.58,0.000236,31]
[348740427,1736764241377,-73281.9810645,0.00023606,10]
[348740595,1736764243258,-2179.717,0.00022739,2]
[348740597,1736764243269,-19693.48299981,0.00023606,10]
[348740600,1736764243283,-923.8500055,0.00023606,10]
[348740606,1736764243344,-42349.03084712,0.00023606,10]
[348740912,1736764246701,-415.22187898,0.00023506,2]
[348740914,1736764246713,-75840.13233344,0.00023606,10]
[348740916,1736764246727,-5364.0,0.00023606,10]
[348740919,1736764246742,-17900.0,0.00023606,10]
[348740925,1736764246789,-9383.10000003,0.00023606,10]
[348740927,1736764246803,-2179.13156026,0.00023606,10]
[348741102,1736765143455,244.594177,0.00013973,2]
[348741108,1736765352158,-250.0,0.00017479,2]
[348741109,1736765352180,-245.001167,0.00017696,2]
[348741110,1736765352202,-457.7202103,0.00017917,2]
[348741111,1736765352224,-330.9809,0.00018156,2]
[348741112,1736765352245,-300.0,0.00018309,2]
[348741113,1736765352267,-18569.18835418,0.0001831,2]
[348741114,1736765355245,-1553.87630489,0.0001831,2]
[348741115,1736765355269,-3396.52521608,0.00018311,2]
[348741116,1736765355293,-24900.0,0.00018987,2]
[348741117,1736765355315,-500.0,0.00019178,2]
[348741118,1736765355336,-269.10653884,0.00019178,2]
[348741119,1736765355367,-243.0690509,0.00019178,2]
[348741120,1736765355397,-500.0,0.00019178,2]
[348741121,1736765355420,-504.6288358,0.00019178,2]
[348741122,1736765355442,-330.73016274,0.00019178,2]
[348741123,1736765355464,-505.11769917,0.00019178,2]
[348741124,1736765355488,-505.18701112,0.00019178,2]
[348741125,1736765355511,-500.0,0.00019178,2]
[348741126,1736765355533,-592.53126619,0.00019178,2]
[348741127,1736765355555,-503.21704808,0.00019178,2]
[348741128,1736765355578,-500.0,0.00019178,2]
[348741129,1736765355601,-500.0,0.00019178,2]
[348741130,1736765355623,-505.99462717,0.00019178,2]
[348741131,1736765355646,-606.38982844,0.00019178,2]
[348741132,1736765355668,-5895.0579411,0.00019192,2]
[348741133,1736765355691,-372.19083293,0.00019265,2]
[348741134,1736765355713,-164.400195,0.00019265,2]
[348741135,1736765355746,-500.0,0.00019452,3]
[348741136,1736765355773,-500.0,0.00019452,3]
[348741137,1736765355795,-500.0,0.00019452,3]
[348741138,1736765355818,-500.0,0.00019452,3]
[348741139,1736765355841,-500.0,0.00019726,3]
[348741140,1736765355864,-500.0,0.00019726,3]
[348741141,1736765355887,-500.0,0.00019726,3]
[348741142,1736765355910,-200.35041216,0.000199,2]
[348741143,1736765355931,-427.08461405,0.00019987,2]
[348741144,1736765355952,-500.0,0.00019999,3]
[348741145,1736765355976,-500.0,0.00019999,3]
[348741146,1736765356000,-715.86,0.00019999,3]
[348741147,1736765356022,-500.0,0.00019999,3]
[348741148,1736765356044,-500.0,0.00019999,3]
[348741149,1736765356065,-180.3119714,0.00019999,3]
[348741150,1736765356086,-731.48,0.00019999,2]
[348741151,1736765356109,-730.85,0.00019999,3]
[348741152,1736765356132,-1095.18,0.0002,2]
[348741153,1736765356152,-300.0,0.0002,8]
[348741154,1736765356173,-302.989,0.0002,2]
[348741155,1736765356196,-500.0,0.0002,3]
[348741156,1736765356218,-500.0,0.0002,3]
[348741157,1736765356242,-395.31188285,0.00020075,2]
[348741158,1736765356265,-569.78844289,0.00020075,2]
[348741159,1736765356287,-500.0,0.00020076,3]
[348741160,1736765356309,-500.0,0.00020076,7]
[348741161,1736765356330,-500.0,0.00020076,3]
[348741162,1736765356352,-500.0,0.00020076,3]
[348741163,1736765356373,-500.0,0.00020076,3]
[348741164,1736765356397,-402.38040911,0.00020076,3]
[348741165,1736765356420,-500.0,0.00020076,2]
[348741166,1736765356441,-500.0,0.00020076,3]
[348741167,1736765356464,-500.0,0.00020076,3]
[348741168,1736765356488,-500.0,0.00020076,3]
[348741169,1736765356510,-505.33301679,0.00020076,3]
[348741170,1736765356531,-500.0,0.00020076,3]
[348741171,1736765356558,-500.0,0.00020076,3]
[348741172,1736765356580,-500.0,0.00020076,3]
[348741173,1736765356602,-500.0,0.00020076,3]
[348741174,1736765356624,-500.0,0.00020076,3]
[348741175,1736765356646,-500.0,0.00020076,3]
[348741176,1736765356668,-500.0,0.00020076,3]
[348741177,1736765356689,-500.0,0.00020076,3]
[348741178,1736765356711,-500.0,0.00020076,3]
[348741179,1736765356736,-500.0,0.00020077,3]
[348741180,1736765356758,-500.0,0.00020077,3]
[348741181,1736765356783,-500.0,0.00020077,3]
[348741182,1736765356806,-500.0,0.00020077,3]
[348741183,1736765356830,-500.0,0.00020077,3]
[348741184,1736765356852,-500.0,0.00020077,3]
[348741185,1736765356874,-500.0,0.00020077,3]
[348741186,1736765356897,-500.0,0.00020077,3]
[348741187,1736765356920,-500.0,0.00020077,3]
[348741188,1736765356940,-500.0,0.00020077,3]
[348741189,1736765356962,-500.0,0.00020077,3]
[348741190,1736765356986,-500.0,0.00020077,3]
[348741191,1736765357007,-500.0,0.00020077,3]
[348741192,1736765357028,-500.0,0.00020077,3]
[348741193,1736765357049,-503.39574564,0.00020077,3]
[348741194,1736765357070,-500.0,0.00020077,3]
[348741195,1736765357091,-500.0,0.00020077,3]
[348741196,1736765357112,-502.73504948,0.00020077,3]
[348741197,1736765357134,-500.0,0.00020077,3]
[348741198,1736765357270,-500.0,0.00020077,3]
[348741199,1736765357293,-500.0,0.00020077,3]
[348741200,1736765357316,-500.0,0.00020077,3]
[348741201,1736765357338,-502.85372471,0.00020077,3]
[348741202,1736765357360,-503.97724691,0.00020077,3]
[348741203,1736765357383,-500.0,0.00020077,3]
[348741204,1736765357404,-500.0,0.00020077,3]
[348741205,1736765357426,-500.0,0.00020077,3]
[348741206,1736765357447,-500.0,0.00020077,3]
[348741207,1736765357470,-500.0,0.00020077,3]
[348741208,1736765357493,-500.0,0.00020077,3]
[348741209,1736765357515,-500.0,0.00020077,3]
[348741210,1736765357536,-331.03855582,0.00020077,3]
[348741211,1736765357558,-500.0,0.00020077,3]
[348741212,1736765357580,-500.0,0.00020077,3]
[348741213,1736765357601,-500.0,0.00020077,3]
[348741214,1736765357624,-500.0,0.00020077,3]
[348741215,1736765357646,-500.0,0.00020077,3]
[348741216,1736765357667,-500.0,0.00020077,3]
[348741217,1736765357689,-500.0,0.00020077,3]
[348741218,1736765357712,-500.0,0.00020077,3]
[348741219,1736765357737,-500.0,0.00020077,3]
[348741220,1736765357759,-500.0,0.00020077,3]
[348741221,1736765357782,-500.0,0.00020077,3]
[348741222,1736765357806,-500.0,0.00020077,3]
[348741223,1736765357827,-500.0,0.00020077,3]
[348741224,1736765357848,-500.0,0.00020077,3]
[348741225,1736765357871,-500.0,0.00020077,3]
[348741226,1736765357893,-500.0,0.00020077,3]
[348741227,1736765357916,-500.0,0.00020077,3]
[348741228,1736765357938,-500.0,0.00020077,3]
[348741229,1736765357961,-500.0,0.00020077,3]
[348741230,1736765357984,-500.0,0.00020077,3]
[348741231,1736765358006,-503.73277036,0.00020077,3]
[348741232,1736765358028,-500.0,0.00020077,3]
[348741233,1736765358051,-500.0,0.00020077,3]
[348741234,1736765358073,-500.0,0.00020077,3]
[348741235,1736765358096,-500.0,0.00020077,3]
[348741236,1736765358119,-500.0,0.00020077,3]
[348741237,1736765358143,-3726.49,0.00020077,3]
[348741238,1736765358166,-500.0,0.00020077,3]
[348741239,1736765358189,-500.0,0.00020077,3]
[348741240,1736765358212,-500.0,0.00020077,3]
[348741241,1736765358237,-500.85953805,0.00020077,3]
[348741242,1736765358259,-503.54406644,0.00020077,3]
[348741243,1736765358281,-500.0,0.00020078,3]
[348741244,1736765358303,-502.46057485,0.00020078,3]
[348741245,1736765358324,-500.0,0.00020078,3]
[348741246,1736765358346,-505.97396424,0.00020078,3]
[348741247,1736765358369,-500.0,0.00020078,3]
[348741248,1736765358392,-500.0,0.00020078,3]
[348741249,1736765358415,-500.0,0.00020078,3]
[348741250,1736765358437,-500.0,0.00020078,3]
[348741251,1736765358461,-500.0,0.00020078,3]
[348741252,1736765358484,-500.0,0.00020078,3]
[348741253,1736765358509,-500.0,0.00020078,3]
[348741254,1736765358532,-500.0,0.00020078,3]
[348741255,1736765358556,-500.0,0.00020078,3]
[348741256,1736765358580,-500.0,0.00020078,3]
[348741257,1736765358602,-500.0,0.00020078,3]
[348741258,1736765358626,-500.0,0.00020078,3]
[348741259,1736765358649,-503.8434795,0.00020078,3]
[348741260,1736765358674,-500.0,0.00020078,3]
[348741261,1736765358696,-500.0,0.00020078,3]
[348741262,1736765358720,-500.0,0.00020078,3]
[348741263,1736765358745,-500.0,0.00020078,3]
[348741264,1736765358770,-500.0,0.00020078,3]
[348741265,1736765358793,-500.0,0.00020078,3]
[348741266,1736765358817,-460.22547737,0.00020078,3]
[348741267,1736765358840,-444.95843707,0.00020078,3]
[348741268,1736765358862,-500.0,0.00020078,3]
[348741269,1736765358885,-537.0313693,0.00020078,3]
[348741270,1736765358908,-503.87523307,0.00020078,3]
[348741271,1736765358931,-504.58436939,0.00020078,3]
[348741272,1736765358954,-500.0,0.00020078,3]
[348741273,1736765358978,-503.3929526,0.00020078,3]
[348741274,1736765359000,-502.76367446,0.00020078,3]
[348741275,1736765359023,-500.0,0.00020078,3]
[348741276,1736765359045,-500.0,0.00020078,3]
[348741277,1736765359074,-505.80843066,0.00020078,3]
[348741278,1736765359099,-200.35041213,0.00020135,2]
[348741279,1736765359124,-503.35408483,0.00020273,3]
[348741280,1736765359149,-500.0,0.00020273,3]
[348741281,1736765359176,-715.86,0.00020273,3]
[348741282,1736765359201,-500.0,0.00020273,3]
[348741283,1736765359225,-731.48,0.00020273,2]
[348741284,1736765359251,-500.0,0.00020273,3]
[348741285,1736765359275,-730.85,0.00020273,3]
[348741286,1736765359297,-268.35,0.00020273,3]
[348741287,1736765359322,-500.0,0.0002035,3]
[348741288,1736765359347,-500.0,0.0002035,3]
[348741289,1736765359371,-500.0,0.0002035,3]
[348741290,1736765359395,-500.0,0.0002035,2]
[348741291,1736765359418,-500.0,0.0002035,3]
[348741292,1736765359444,-500.0,0.0002035,3]
[348741293,1736765359468,-500.0,0.0002035,3]
[348741294,1736765359492,-616.07,0.0002035,3]
[348741295,1736765359516,-500.0,0.0002035,3]
[348741296,1736765359539,-500.0,0.0002035,3]
[348741297,1736765359563,-500.0,0.0002035,3]
[348741298,1736765359587,-244.15719847,0.0002035,3]
[348741299,1736765359612,-500.0,0.0002035,3]
[348741300,1736765359636,-500.0,0.0002035,3]
[348741301,1736765359753,-500.0,0.0002035,3]
[348741302,1736765359780,-500.0,0.00020351,3]
[348741303,1736765359807,-500.0,0.00020351,3]
[348741304,1736765359832,-500.0,0.00020351,3]
[348741305,1736765359856,-500.0,0.00020351,3]
[348741306,1736765359879,-500.0,0.00020351,3]
[348741307,1736765359902,-500.0,0.00020351,3]
[348741308,1736765359925,-500.0,0.00020351,3]
[348741309,1736765359951,-500.0,0.00020351,3]
[348741310,1736765359975,-500.0,0.00020351,3]
[348741311,1736765360000,-500.0,0.00020351,3]
[348741312,1736765360027,-500.0,0.00020351,3]
[348741313,1736765360049,-500.0,0.00020351,3]
[348741314,1736765360072,-500.0,0.00020351,3]
[348741315,1736765360095,-500.0,0.00020351,3]
[348741316,1736765360119,-500.0,0.00020351,3]
[348741317,1736765360141,-500.0,0.00020351,3]
[348741318,1736765360164,-500.0,0.00020351,3]
[348741319,1736765360187,-500.0,0.00020351,3]
[348741320,1736765360210,-500.0,0.00020351,3]
[348741321,1736765360236,-500.0,0.00020351,3]
[348741322,1736765360259,-500.0,0.00020351,3]
[348741323,1736765360283,-500.0,0.00020351,3]
[348741324,1736765360305,-500.0,0.00020351,3]
[348741325,1736765360327,-500.0,0.00020351,3]
[348741326,1736765360348,-500.0,0.00020351,3]
[348741327,1736765360371,-500.0,0.00020351,3]
[348741328,1736765360392,-500.0,0.00020351,3]
[348741329,1736765360414,-500.0,0.00020351,3]
[348741330,1736765360437,-500.0,0.00020351,3]
[348741331,1736765360460,-500.0,0.00020351,3]
[348741332,1736765360484,-177.1427716,0.00020351,3]
[348741333,1736765360506,-238.08,0.00020351,3]
[348741334,1736765360527,-500.0,0.00020351,3]
[348741335,1736765360548,-500.0,0.00020351,3]
[348741336,1736765360571,-500.0,0.00020351,3]
[348741337,1736765360592,-500.0,0.00020351,3]
[348741338,1736765360613,-3726.49,0.00020351,3]
[348741339,1736765360635,-500.0,0.00020351,3]
[348741340,1736765360657,-500.0,0.00020351,3]
[348741341,1736765360679,-606.43462903,0.00020351,3]
[348741342,1736765360699,-372.8907907,0.00020352,3]
[348741343,1736765360722,-500.0,0.00020352,3]
[348741344,1736765360748,-500.0,0.00020352,3]
[348741345,1736765360772,-500.0,0.00020352,3]
[348741346,1736765360793,-500.0,0.00020352,3]
[348741347,1736765360817,-500.0,0.00020352,3]
[348741348,1736765360840,-500.0,0.00020352,3]
[348741349,1736765360863,-500.0,0.00020352,3]
[348741350,1736765360885,-500.0,0.00020352,3]
[348741351,1736765360906,-431.468,0.00020352,3]
[348741352,1736765360929,-500.0,0.00020352,3]
[348741353,1736765360951,-180.94,0.00020352,3]
[348741354,1736765360972,-500.0,0.00020352,3]
[348741355,1736765360998,-500.0,0.00020352,3]
[348741356,1736765361020,-200.35041213,0.00020371,2]
[348741357,1736765361043,-244.594177,0.00020447,2]
[348741358,1736765361068,-715.86,0.00020547,3]
[348741359,1736765361091,-500.0,0.00020547,3]
[348741360,1736765361113,-500.0,0.00020547,3]
[348741361,1736765361135,-500.0,0.00020547,3]
[348741362,1736765361155,-731.48,0.00020547,2]
[348741363,1736765361177,-297.3,0.00020547,3]
[348741364,1736765361200,-730.85,0.00020547,3]
[348741365,1736765361223,-200.35041213,0.00020606,2]
[348741366,1736765361249,-500.0,0.00020624,3]
[348741367,1736765361271,-500.0,0.00020624,3]
[348741368,1736765361292,-500.0,0.00020624,3]
[348741369,1736765361315,-500.0,0.00020624,2]
[348741370,1736765361334,-500.0,0.00020624,3]
[348741371,1736765361358,-500.0,0.00020624,3]
[348741372,1736765361380,-500.0,0.00020624,3]
[348741373,1736765361402,-500.0,0.00020624,3]
[348741374,1736765361424,-500.0,0.00020624,3]
[348741375,1736765361446,-500.0,0.00020624,3]
[348741376,1736765361468,-500.0,0.00020624,3]
[348741377,1736765361493,-500.0,0.00020624,3]
[348741378,1736765361514,-500.0,0.00020625,3]
[348741379,1736765361535,-500.0,0.00020625,3]
[348741380,1736765361566,-500.0,0.00020625,3]
[348741381,1736765361591,-500.0,0.00020625,3]
[348741382,1736765361614,-500.0,0.00020625,3]
[348741383,1736765361637,-507.14,0.00020625,3]
[348741384,1736765361659,-500.0,0.00020625,3]
[348741385,1736765361680,-500.0,0.00020625,3]
[348741386,1736765361702,-500.0,0.00020625,3]
[348741387,1736765361727,-500.0,0.00020625,3]
[348741388,1736765361752,-500.0,0.00020625,3]
[348741389,1736765361774,-251.07583281,0.00020625,3]
[348741390,1736765361797,-500.0,0.00020625,3]
[348741391,1736765361819,-500.0,0.00020625,3]
[348741392,1736765361841,-500.0,0.00020625,3]
[348741393,1736765361863,-500.0,0.00020625,3]
[348741394,1736765361884,-500.0,0.00020625,3]
[348741395,1736765361906,-507.43840312,0.00020625,3]
[348741396,1736765361927,-500.0,0.00020625,3]
[348741397,1736765361950,-500.0,0.00020625,3]
[348741398,1736765361973,-500.0,0.00020625,3]
[348741399,1736765361998,-500.0,0.00020625,3]
[348741400,1736765362104,-500.0,0.00020625,3]
[348741401,1736765362128,-500.0,0.00020625,3]
[348741402,1736765362151,-608.37,0.00020625,3]
[348741403,1736765362174,-500.0,0.00020625,3]
[348741404,1736765362195,-500.0,0.00020625,3]
[348741405,1736765362216,-500.0,0.00020625,3]
[348741406,1736765362241,-500.0,0.00020625,3]
[348741407,1736765362263,-500.0,0.00020625,3]
[348741408,1736765362285,-500.0,0.00020625,3]
[348741409,1736765362308,-500.0,0.00020625,3]
[348741410,1736765362330,-500.0,0.00020625,3]
[348741411,1736765362351,-406.4240921,0.00020625,2]
[348741412,1736765362374,-3726.49,0.00020625,3]
[348741413,1736765362395,-500.0,0.00020625,3]
[348741414,1736765362418,-500.0,0.00020625,3]
[348741415,1736765362440,-500.0,0.00020626,3]
[348741416,1736765362462,-500.0,0.00020626,3]
[348741417,1736765362485,-500.0,0.00020626,3]
[348741418,1736765362507,-500.0,0.00020626,3]
[348741419,1736765362528,-413.07192016,0.00020626,3]
[348741420,1736765362550,-500.0,0.00020626,3]
[348741421,1736765362572,-500.0,0.00020626,3]
[348741422,1736765362593,-500.0,0.00020626,3]
[348741423,1736765362614,-211.30444048,0.00020626,3]
[348741424,1736765362635,-500.0,0.00020626,3]
[348741425,1736765362656,-500.0,0.00020626,3]
[348741426,1736765362679,-395.0,0.00020811,2]
[348741427,1736765362702,-715.86,0.00020821,3]
[348741428,1736765362729,-500.0,0.00020821,3]
[348741429,1736765362750,-731.48,0.00020821,2]
[348741430,1736765362775,-730.85,0.00020821,3]
[348741431,1736765362799,-200.35041213,0.00020841,2]
[348741432,1736765362822,-500.0,0.00020898,3]
[348741433,1736765362844,-500.0,0.00020898,3]
[348741434,1736765362869,-500.0,0.00020898,2]